lending/lending_fUSD_20251022
["ID","MTS","AMOUNT","RATE_DAILY","PERIOD"]
[392092114,1761150643649,-1000.0,0.000449,7]
[392092115,1761150643658,-1000.0,0.000449,7]
[392092116,1761150643668,-1003.0,0.000449,7]
[392092117,1761150643678,-154.58,0.000449,120]
[392092118,1761150643689,-180.34646967,0.000449,120]
[392092119,1761150643700,-180.34,0.000449,120]
[392092120,1761150643709,-166.47,0.000449,120]
[392092121,1761150643720,-16181.83649564,0.000449,2]
[392092122,1761150643729,-532.2436917,0.000449,2]
[392092123,1761150643740,-181.53550162,0.000449,2]
[392092124,1761150643750,-4899.48171642,0.000449,15]
[392092125,1761150643760,-150.0,0.00044948,2]
[392092126,1761150643770,-4424.52008255,0.00044959,3]
[392092128,1761150643783,-11086.4839759,0.00044967,3]
[392092129,1761150643793,-11086.4839759,0.00044969,3]
[392092130,1761150643805,-11086.4839759,0.00044969,3]
[392092131,1761150643815,-501.10216943,0.00044973,10]
[392092132,1761150643833,-500.0,0.00044973,2]
[392092133,1761150643844,-22122.6004127,0.00044977,3]
[392092134,1761150643855,-17698.0803302,0.00044979,3]
[392092135,1761150643865,-1000.0,0.00044979,30]
[392092136,1761150643876,-2838.0,0.00044979,76]
[392092137,1761150643888,-8849.0401651,0.0004498,3]
[392092138,1761150643901,-1225.0,0.00044986,120]
[392092139,1761150643913,-33259.4519278,0.00044987,3]
[392092140,1761150643924,-55432.4198796,0.00044989,3]
[392092141,1761150643940,-150.29,0.00044989,2]
[392092142,1761150643952,-197.77806269,0.00044989,7]
[392092143,1761150643964,-22172.9679519,0.0004499,3]
[392092144,1761150643977,-698.2,0.0004499,120]
[392092145,1761150643990,-150.0,0.0004499,120]
[392092146,1761150644006,-133037.807711,0.0004499,3]
[392092147,1761150644018,-150.29,0.0004499,2]
[392092148,1761150644031,-150.29,0.0004499,2]
[392092149,1761150644044,-150.29,0.0004499,2]
[392092150,1761150644056,-150.29,0.0004499,2]
[392092151,1761150644068,-150.29,0.0004499,2]
[392092152,1761150644084,-150.29,0.0004499,2]
[392092153,1761150644096,-150.29,0.0004499,2]
[392092154,1761150644109,-150.29,0.0004499,2]
[392092155,1761150644122,-150.29,0.0004499,2]
[392092156,1761150644133,-150.29,0.0004499,2]
[392092157,1761150644145,-150.29,0.0004499,2]
[392092158,1761150644157,-197.77806269,0.0004499,7]
[392092159,1761150644169,-3807.6477836,0.00044997,2]
[392092160,1761150644181,-58536.9386137,0.00044997,2]
[392092161,1761150644192,-3974.0038419,0.00044997,2]
[392092162,1761150644204,-1336.5630486,0.00044997,2]
[392092163,1761150644216,-8906.2980907,0.00044997,2]
[392092164,1761150644227,-297.7479656,0.00044998,120]
[392092165,1761150644238,-1228.92941237,0.00044999,60]
[392092166,1761150644249,-1228.92941236,0.00044999,60]
[392092167,1761150644259,-1000.0,0.00044999,30]
[392092168,1761150644269,-1000.0,0.00044999,30]
[392092169,1761150644280,-1000.0,0.00044999,30]
[392092170,1761150644291,-168.19,0.00044999,7]
[392092171,1761150644302,-300.0,0.00044999,120]
[392092172,1761150644312,-250.0,0.00044999,120]
[392092173,1761150644322,-1000.0,0.00044999,120]
[392092174,1761150644511,-264.28316117,0.00044999,120]
[392092175,1761150644523,-250.0,0.00044999,120]
[392092176,1761150644533,-1000.0,0.00044999,120]
[392092177,1761150644543,-250.0,0.00044999,120]
[392092178,1761150644553,-1000.0,0.00044999,120]
[392092179,1761150644563,-250.0,0.00044999,120]
[392092180,1761150644572,-1000.0,0.00044999,120]
[392092181,1761150644588,-250.0,0.00044999,120]
[392092182,1761150644598,-1000.0,0.00044999,120]
[392092183,1761150644608,-250.0,0.00044999,120]
[392092184,1761150644619,-1000.0,0.00044999,120]
[392092185,1761150644629,-250.0,0.00044999,120]
[392092186,1761150644639,-1000.0,0.00044999,120]
[392092187,1761150644649,-250.0,0.00044999,120]
[392092188,1761150644660,-1000.0,0.00044999,120]
[392092189,1761150644670,-1000.0,0.00044999,120]
[392092190,1761150644680,-250.0,0.00044999,120]
[392092191,1761150644690,-1000.0,0.00044999,120]
[392092192,1761150644700,-250.0,0.00044999,120]
[392092193,1761150644710,-1000.0,0.00044999,120]
[392092194,1761150644720,-250.0,0.00044999,120]
[392092195,1761150644729,-1000.0,0.00044999,120]
[392092196,1761150644739,-250.0,0.00044999,120]
[392092197,1761150644748,-1000.0,0.00044999,120]
[392092198,1761150644758,-250.0,0.00044999,120]
[392092199,1761150644768,-1000.0,0.00044999,120]
[392092200,1761150644777,-1000.0,0.00044999,120]
[392092201,1761150644787,-250.0,0.00044999,120]
[392092202,1761150644796,-1000.0,0.00044999,120]
[392092203,1761150644806,-1000.0,0.00044999,120]
[392092204,1761150644815,-250.0,0.00044999,120]
[392092205,1761150644829,-1000.0,0.00044999,120]
[392092206,1761150644839,-1000.0,0.00044999,120]
[392092207,1761150644848,-250.0,0.00044999,120]
[392092208,1761150644857,-1000.0,0.00044999,120]
[392092209,1761150644867,-1000.0,0.00044999,120]
[392092210,1761150644877,-250.0,0.00044999,120]
[392092211,1761150644886,-1000.0,0.00044999,120]
[392092212,1761150644896,-1000.0,0.00044999,120]
[392092213,1761150644906,-250.0,0.00044999,120]
[392092214,1761150644915,-1000.0,0.00044999,120]
[392092215,1761150644925,-1000.0,0.00044999,120]
[392092216,1761150644935,-250.0,0.00044999,120]
[392092217,1761150644945,-1000.0,0.00044999,120]
[392092218,1761150644955,-1000.0,0.00044999,120]
[392092219,1761150644964,-250.0,0.00044999,120]
[392092220,1761150644976,-1000.0,0.00044999,120]
[392092221,1761150644985,-1000.0,0.00044999,120]
[392092222,1761150644994,-250.0,0.00044999,120]
[392092223,1761150645004,-1000.0,0.00044999,120]
[392092224,1761150645013,-250.0,0.00044999,120]
[392092225,1761150645023,-1000.0,0.00044999,120]
[392092226,1761150645032,-1000.0,0.00044999,120]
[392092227,1761150645042,-250.0,0.00044999,120]
[392092228,1761150645051,-1000.0,0.00044999,120]
[392092229,1761150645061,-1000.0,0.00044999,120]
[392092230,1761150645070,-250.0,0.00044999,120]
[392092231,1761150645085,-1000.0,0.00044999,120]
[392092232,1761150645095,-250.0,0.00044999,120]
[392092233,1761150645105,-1000.0,0.00044999,120]
[392092234,1761150645115,-250.0,0.00044999,120]
[392092235,1761150645125,-1000.0,0.00044999,120]
[392092236,1761150645134,-250.0,0.00044999,120]
[392092237,1761150645147,-1000.0,0.00044999,120]
[392092238,1761150645156,-250.0,0.00044999,120]
[392092239,1761150645166,-1000.0,0.00044999,120]
[392092240,1761150645175,-250.0,0.00044999,120]
[392092241,1761150645185,-1000.0,0.00044999,120]
[392092242,1761150645194,-500.0,0.00044999,120]
[392092243,1761150645204,-500.0,0.00044999,120]
[392092244,1761150645215,-1000.0,0.00044999,120]
[392092245,1761150645227,-500.0,0.00044999,120]
[392092246,1761150645238,-1000.0,0.00044999,120]
[392092247,1761150645249,-500.0,0.00044999,120]
[392092248,1761150645261,-1000.0,0.00044999,120]
[392092249,1761150645272,-500.0,0.00044999,120]
[392092250,1761150645283,-1000.0,0.00044999,120]
[392092251,1761150645294,-500.0,0.00044999,120]
[392092252,1761150645305,-1000.0,0.00044999,120]
[392092253,1761150645318,-1000.0,0.00044999,120]
[392092254,1761150645340,-500.0,0.00044999,120]
[392092255,1761150645351,-1000.0,0.00044999,120]
[392092256,1761150645362,-500.0,0.00044999,120]
[392092257,1761150645373,-1000.0,0.00044999,120]
[392092258,1761150645385,-500.0,0.00044999,120]
[392092259,1761150645396,-1000.0,0.00044999,120]
[392092260,1761150645407,-1000.0,0.00044999,120]
[392092261,1761150645417,-1000.0,0.00044999,120]
[392092262,1761150645427,-1000.0,0.00044999,120]
[392092263,1761150645438,-1000.0,0.00044999,120]
[392092264,1761150645448,-1000.0,0.00044999,120]
[392092265,1761150645458,-1000.0,0.00044999,120]
[392092266,1761150645469,-1000.0,0.00044999,120]
[392092267,1761150645479,-1000.0,0.00044999,120]
[392092268,1761150645488,-1000.0,0.00044999,120]
[392092269,1761150645498,-999.0,0.00044999,120]
[392092270,1761150645508,-1000.0,0.00044999,120]
[392092271,1761150645518,-1000.0,0.00044999,120]
[392092272,1761150645527,-600.0,0.00044999,120]
[392092273,1761150645537,-600.0,0.00044999,120]
[392092274,1761150645546,-600.0,0.00044999,120]
[392092275,1761150645556,-600.0,0.00044999,120]
[392092276,1761150645565,-600.0,0.00044999,120]
[392092277,1761150645580,-600.0,0.00044999,120]
[392092278,1761150645590,-600.0,0.00044999,120]
[392092279,1761150645599,-600.0,0.00044999,120]
[392092280,1761150645609,-600.0,0.00044999,120]
[392092281,1761150645619,-600.0,0.00044999,120]
[392092282,1761150645629,-578.20924308,0.00044999,120]
[392092283,1761150645639,-250.0,0.00044999,120]
[392092284,1761150645649,-500.0,0.00044999,120]
[392092285,1761150645658,-250.0,0.00044999,120]
[392092286,1761150645668,-250.0,0.00044999,120]
[392092287,1761150645678,-500.0,0.00044999,120]
[392092288,1761150645689,-250.0,0.00044999,120]
[392092289,1761150645699,-500.0,0.00044999,120]
[392092290,1761150645709,-250.0,0.00044999,120]
[392092291,1761150645720,-500.0,0.00044999,120]
[392092292,1761150645731,-250.0,0.00044999,120]
[392092293,1761150645742,-500.0,0.00044999,120]
[392092294,1761150645752,-250.0,0.00044999,120]
[392092295,1761150645763,-500.0,0.00044999,120]
[392092296,1761150645773,-250.0,0.00044999,120]
[392092297,1761150645784,-500.0,0.00044999,120]
[392092298,1761150645795,-250.0,0.00044999,120]
[392092299,1761150645805,-250.0,0.00044999,120]
[392092300,1761150645815,-500.0,0.00044999,120]
[392092301,1761150645832,-250.0,0.00044999,120]
[392092302,1761150645842,-500.0,0.00044999,120]
[392092303,1761150645853,-250.0,0.00044999,120]
[392092304,1761150645862,-500.0,0.00044999,120]
[392092305,1761150645872,-250.0,0.00044999,120]
[392092306,1761150645882,-500.0,0.00044999,120]
[392092307,1761150645892,-250.0,0.00044999,120]
[392092308,1761150645903,-500.0,0.00044999,120]
[392092309,1761150645914,-250.0,0.00044999,120]
[392092311,1761150645931,-500.0,0.00044999,120]
[392092312,1761150645944,-250.0,0.00044999,120]
[392092313,1761150645954,-500.0,0.00044999,120]
[392092314,1761150645965,-250.0,0.00044999,120]
[392092315,1761150645978,-500.0,0.00044999,120]
[392092316,1761150645992,-250.0,0.00044999,120]
[392092317,1761150646003,-500.0,0.00044999,120]
[392092318,1761150646014,-250.0,0.00044999,120]
[392092319,1761150646025,-500.0,0.00044999,120]
[392092320,1761150646036,-250.0,0.00044999,120]
[392092321,1761150646049,-500.0,0.00044999,120]
[392092322,1761150646060,-384.94969882,0.00044999,120]
[392092323,1761150646070,-1006.0,0.00045,7]
[392092324,1761150646087,-45373.76189762,0.00045,18]
[392092325,1761150646097,-2612.50678233,0.00045,120]
[392092326,1761150646108,-488107.6821971,0.00045,120]
[392092327,1761150646119,-292.26,0.00045,30]
[392092328,1761150646129,-1000000.0,0.00045,120]
[392092329,1761150646140,-1000000.0,0.00045,120]
[392092330,1761150646151,-1000000.0,0.00045,120]
[392092331,1761150646162,-1000000.0,0.00045,120]
[392092332,1761150646174,-1000000.0,0.00045,120]
[392092333,1761150646185,-999999.0,0.00045,120]
[392092334,1761150646196,-1000000.0,0.00045,120]
[392092335,1761150646207,-1000000.0,0.00045,120]
[392092336,1761150646218,-633873.00491013,0.00045,120]
[392092337,1761150646499,-430.57826106,0.00045,120]
[392092338,1761150646523,-1775.52917248,0.00045,120]
[392092339,1761150646535,-802.76160875,0.00045,120]
[392092340,1761150646548,-3118.69337497,0.00045,120]
[392092341,1761150646582,-7397.0,0.00045,120]
[392092518,1761150660375,3388.67608,0.00033689,2]
[392092519,1761150660588,3388.67608,0.00037532,2]
[392092520,1761150660815,3388.67608,0.00041376,2]
[392092524,1761150793232,284.4,0.00018002,2]
[392092526,1761150914773,10000.0,0.000175,2]
[392092530,1761151049933,1363.25,0.00027397,120]
[392092532,1761151176234,-194.5390773,0.0003,15]
[392092533,1761151179110,-250.78271875,0.0003,15]
[392092534,1761151191194,-242.65820395,0.0003,15]
[392092535,1761151191215,-31.10921184,0.000305,120]
[392092538,1761151236181,-163.89078816,0.000305,120]
[392092539,1761151236204,-51.97179959,0.00031,120]
[392092547,1761151296239,-122.02820041,0.00031,120]
[392092548,1761151296263,-32.66136964,0.00033,2]
[392092550,1761151298447,-188.31477724,0.00033,2]
[392092551,1761151300815,-29.02385312,0.00033,2]
[392092552,1761151300837,-139.05369392,0.00033,120]
[392092554,1761151306028,-55.94630608,0.00033,120]
[392092555,1761151306052,-118.95326512,0.00033,120]
[392092557,1761151312643,-127.82131211,0.00033,120]
[392092558,1761151312667,-157.73370258,0.0003355,120]
[392092559,1761151315457,-312.57792887,0.0003355,120]
[392092561,1761151318297,-346.0,0.0003355,120]
[392092562,1761151341897,-200.0,0.0003355,120]
[392092565,1761151386130,-232.80546947,0.0003355,120]
[392092566,1761151386163,-138.48053104,0.00035268,120]
[392092567,1761151431143,-132.09304906,0.00035268,120]
[392092568,1761151431170,-142.91306979,0.00036888,7]
[392092570,1761151492247,-152.44103021,0.00036888,7]
[392092571,1761151492271,-121.76896979,0.00038888,30]
[392092572,1761151494572,-166.19674465,0.00038888,30]
[392092573,1761151496905,-191.54104273,0.00038888,30]
[392092574,1761151500466,-410.52093726,0.00038888,30]
[392092575,1761151502823,-356.25646066,0.00038888,30]
[392092576,1761151509743,-243.74353934,0.00035268,120]
[392092577,1761151511329,-26.83004076,0.00035268,120]
[392092578,1761151511356,-153.16995924,0.00038888,30]
[392092579,1761151514306,-207.01991656,0.00038888,30]
[392092580,1761151518305,-224.88248303,0.00038888,30]
[392092582,1761151536280,-281.942942,0.00038888,30]
[392092583,1761151538486,-233.93749573,0.00038888,30]
[392092584,1761151540156,-310.95064835,0.00038888,30]
[392092585,1761151540182,-0.5717243,0.00039115,30]
[392092586,1761151544190,-296.56184647,0.00039115,30]
[392092587,1761151566245,-202.86642923,0.00039115,30]
[392092588,1761151566269,-198.1155136,0.0004,120]
[392092596,1761151608168,-321.93935055,0.0004,120]
[392092601,1761151644135,-297.30042414,0.0003246,7]
[392092602,1761151647218,-166.66096256,0.0003246,7]
[392092603,1761151648091,-36.0386133,0.0003246,7]
[392092604,1761151648112,-413.17786835,0.0004,120]
[392092605,1761151650111,-304.92568635,0.0004,120]
[392092606,1761151651132,-617.84158115,0.0004,120]
[392092607,1761151651155,-239.0,0.0004,7]
[392092608,1761151651176,-1015.00762325,0.000408,2]
[392092609,1761151651198,-1888.760844,0.00041168,2]
[392092610,1761151651224,-151.0,0.00041376,2]
[392092611,1761151651243,-151.0,0.00041376,2]
[392092612,1761151651267,-250.0,0.00042,7]
[392092613,1761151651288,-1200.0,0.00042535,5]
[392092614,1761151651312,-218.0,0.00042536,5]
[392092615,1761151651333,-153.0,0.00042537,90]
[392092616,1761151651354,-153.0,0.00042537,90]
[392092617,1761151651373,-153.0,0.00042537,90]
[392092618,1761151651395,-153.0,0.00042537,90]
[392092619,1761151651419,-153.0,0.00042537,90]
[392092620,1761151651440,-153.0,0.00042537,90]
[392092621,1761151651461,-153.0,0.00042537,90]
[392092622,1761151651481,-153.0,0.00042537,90]
[392092623,1761151651503,-153.0,0.00042537,90]
[392092624,1761151651524,-153.0,0.00042537,90]
[392092625,1761151651544,-153.0,0.00042537,90]
[392092626,1761151651564,-153.0,0.00042537,90]
[392092627,1761151651586,-153.0,0.00042537,90]
[392092628,1761151651606,-153.0,0.00042537,90]
[392092629,1761151651627,-153.0,0.00042537,90]
[392092630,1761151651646,-153.0,0.00042537,90]
[392092631,1761151651666,-153.0,0.00042537,90]
[392092632,1761151651686,-153.0,0.00042537,90]
[392092633,1761151651706,-153.0,0.00042537,90]
[392092634,1761151651728,-153.0,0.00042537,90]
[392092635,1761151651748,-153.0,0.00042537,90]
[392092636,1761151651769,-153.0,0.00042537,90]
[392092637,1761151651788,-153.0,0.00042537,90]
[392092638,1761151651808,-153.0,0.00042537,90]
[392092639,1761151651827,-153.0,0.00042537,90]
[392092640,1761151651847,-153.0,0.00042537,90]
[392092641,1761151651868,-153.0,0.00042537,90]
[392092642,1761151651889,-153.0,0.00042537,90]
[392092643,1761151651910,-153.0,0.00042537,90]
[392092644,1761151651933,-153.0,0.00042537,90]
[392092645,1761151651954,-153.0,0.00042537,90]
[392092646,1761151651975,-153.0,0.00042537,90]
[392092647,1761151651995,-153.0,0.00042537,90]
[392092648,1761151652016,-153.0,0.00042537,90]
[392092649,1761151652036,-17.33851827,0.00042537,90]
[392092655,1761151832240,-500.0,0.0003562,2]
[392092656,1761151832252,-500.0,0.0003562,2]
[392092657,1761151832264,-500.0,0.0003562,2]
[392092658,1761151832273,-500.0,0.0003562,2]
[392092659,1761151832283,-412.24959229,0.0003562,2]
[392092660,1761151832296,-89.49098551,0.0003562,2]
[392092661,1761151832305,-334.28484433,0.000411,2]
[392092662,1761151832315,-1291.29825889,0.00041361,2]
[392092663,1761151832398,-1139.38393231,0.00041361,2]
[392092664,1761151832408,-32.48658712,0.00041376,2]
[392092665,1761151832420,-118.51341288,0.00041376,2]
[392092666,1761151832431,-300.0,0.00042536,5]
[392092667,1761151832441,-300.0,0.00042536,5]
[392092668,1761151832450,-153.0,0.00042537,90]
[392092669,1761151832460,-153.0,0.00042537,90]
[392092670,1761151832470,-153.0,0.00042537,90]
[392092671,1761151832480,-153.0,0.00042537,90]
[392092672,1761151832490,-153.0,0.00042537,90]
[392092673,1761151832500,-153.0,0.00042537,90]
[392092674,1761151832510,-153.0,0.00042537,90]
[392092675,1761151832519,-153.0,0.00042537,90]
[392092676,1761151832530,-153.0,0.00042537,90]
[392092677,1761151832540,-153.0,0.00042537,90]
[392092678,1761151832550,-25.22270265,0.00042537,90]
[392092679,1761151832562,-127.77729735,0.00042537,90]
[392092680,1761151832572,-153.0,0.00042537,90]
[392092681,1761151832583,-153.0,0.00042537,90]
[392092682,1761151832593,-133.21776247,0.00042537,90]
[392092683,1761151832610,-19.78223753,0.00042537,90]
[392092685,1761151832619,-153.0,0.00042537,90]
[392092686,1761151832629,-106.37938652,0.00042537,90]
[392092687,1761151832640,-46.62061348,0.00042537,90]
[392092688,1761151832649,-153.0,0.00042537,90]
[392092689,1761151832658,-153.0,0.00042537,90]
[392092690,1761151832667,-153.0,0.00042537,90]
[392092692,1761151832677,-153.0,0.00042537,90]
[392092693,1761151832687,-153.0,0.00042537,90]
[392092694,1761151832696,-153.0,0.00042537,90]
[392092695,1761151832706,-153.0,0.00042537,90]
[392092696,1761151832715,-153.0,0.00042537,90]
[392092697,1761151832724,-153.0,0.00042537,90]
[392092698,1761151832734,-153.0,0.00042537,90]
[392092699,1761151832743,-153.0,0.00042537,90]
[392092700,1761151832753,-153.0,0.00042537,90]
[392092701,1761151832762,-153.0,0.00042537,90]
[392092706,1761151832951,-153.0,0.00042537,90]
[392092707,1761151832962,-153.0,0.00042537,90]
[392092708,1761151832971,-500.0,0.000426,10]
[392092709,1761151832980,-500.0,0.000426,10]
[392092710,1761151832994,-630.77938652,0.00042869,120]
[392092711,1761151833191,-49.91294235,0.00042869,120]
[392092712,1761151833203,-819.30767113,0.00042869,120]
[392092713,1761151833212,-216.0,0.00042873,2]
[392092714,1761151833222,-54.69232887,0.00042874,2]
[392092715,1761151833233,-251.6559542,0.00042874,2]
[392092716,1761151833245,-693.65171693,0.00042874,2]
[392092717,1761151833258,-200.0,0.00042897,2]
[392092718,1761151833267,-216.0,0.00042941,7]
[392092719,1761151833276,-751.73,0.00042958,2]
[392092720,1761151833286,-6.39223544,0.00042979,20]
[392092721,1761151833299,-659.60776456,0.00042979,20]
[392092722,1761151833308,-638.34053726,0.00043,120]
[392092723,1761151838334,-154.32098463,0.00042958,2]
[392092724,1761151838346,-306.61028207,0.00043,120]
[392092725,1761151838359,-427.44221978,0.00043,120]
[392092752,1761151839239,-2588.8785994,0.00043,120]
[392092753,1761151839425,-18.51788466,0.00043,120]
[392092759,1761151840328,-2276.51096627,0.00043,120]
[392092760,1761151840708,-744.08126508,0.00043,120]
[392092766,1761151841144,-1.6e-07,0.00043,120]
[392092767,1761151841181,-541.7,0.00043,120]
[392092768,1761151841192,-756.2,0.00043,120]
[392092769,1761151841203,-1701.71824532,0.00043,120]
[392092770,1761151841213,-172.116,0.00043,66]
[392092771,1761151841224,-1000.0,0.00043083,2]
[392092772,1761151841234,-1000.0,0.00043148,10]
[392092773,1761151841243,-1996.75,0.00043242,120]
[392092774,1761151841253,-648.09,0.00043422,7]
[392092775,1761151841266,-536.32484411,0.00043567,120]
[392092780,1761151843431,-396.83604645,0.00043,120]
[392092781,1761151843446,-761.86383001,0.00043,120]
[392092782,1761151843572,-1646.10012354,0.00043,120]
[392092783,1761151843581,-9463.67515589,0.00043567,120]
[392092784,1761151843590,-5142.14666695,0.00043598,2]
[392092785,1761151843611,-110.6369,0.00043598,2]
[392092786,1761151843639,-383.62457847,0.00043598,2]
[392092787,1761151843651,-24729.82185458,0.00043598,2]
[392092788,1761151843660,-250.0,0.00043628,120]
[392092789,1761151843670,-1000.0,0.00043676,120]
[392092790,1761151843679,-1500.0,0.00043696,10]
[392092791,1761151843689,-214.0,0.00043743,2]
[392092792,1761151843699,-898.38,0.00043807,2]
[392092793,1761151843709,-195.79236197,0.00043836,2]
[392092794,1761151843718,-1518.64731358,0.00043933,2]
[392092795,1761151843734,-31176.60158642,0.00043933,2]
[392092796,1761151843743,-214.0,0.00043956,120]
[392092797,1761151843752,-214.0,0.00044011,7]
[392092798,1761151843761,-5000.0,0.00044029,120]
[392092799,1761151843771,-10000.0,0.00044133,120]
[392092800,1761151843780,-170.3654195,0.00044133,30]
[392092801,1761151843790,-163.31,0.0004421,2]
[392092802,1761151843799,-1000.0,0.00044481,2]
[392092803,1761151843809,-605.07525,0.0004455,23]
[392092804,1761151843818,-500.0,0.00044699,120]
[392092805,1761151843827,-500.0,0.00044699,120]
[392092806,1761151843836,-500.0,0.00044699,120]
[392092807,1761151843846,-338.6607271,0.00044699,120]
[392092808,1761151843855,-500.0,0.00044699,120]
[392092809,1761151843865,-4285.15,0.000447,120]
[392092810,1761151843875,-605.07526,0.0004471,24]
[392092811,1761151843887,-214.0,0.00044789,2]
[392092812,1761151843897,-2500.0,0.000448,2]
[392092813,1761151843906,-600.0,0.0004488,120]
[392092814,1761151843916,-5000.0,0.0004489,120]
[392092815,1761151843926,-161.34632666,0.00044894,28]
[392092816,1761151843936,-662.37266004,0.00044895,15]
[392092817,1761151843946,-1746.78714658,0.00044895,17]
[392092818,1761151843955,-662.37266001,0.00044896,15]
[392092819,1761151843964,-662.37266001,0.00044896,15]
[392092820,1761151843973,-662.37266001,0.00044897,15]
[392092821,1761151843982,-662.37266001,0.00044897,15]
[392092822,1761151843992,-662.37266001,0.00044898,15]
[392092823,1761151844001,-161.34632666,0.00044898,28]
[392092824,1761151844011,-662.37266001,0.00044898,15]
[392092825,1761151844021,-662.37266001,0.00044899,15]
[392092826,1761151844030,-287.46249264,0.00044899,120]
[392092827,1761151844040,-662.37266001,0.00044899,15]
[392092828,1761151844050,-131170.8799,0.000449,60]
[392092829,1761151844060,-554.73424766,0.000449,120]
[392092830,1761151844070,-662.37266001,0.000449,15]
[392092831,1761151844079,-217.56063084,0.000449,15]
[392092832,1761151844089,-10787.89099708,0.000449,2]
[392092833,1761151844100,-354.8291278,0.000449,2]
[392092834,1761151844110,-161.34632666,0.00044902,28]
[392092835,1761151844119,-161.34632666,0.00044906,28]
[392092836,1761151844129,-161.34632666,0.0004491,28]
[392092837,1761151844138,-554.73424766,0.00044915,120]
[392092838,1761151844148,-554.73424766,0.00044929,120]
[392092839,1761151844157,-214.0,0.00044948,7]
[392092840,1761151844167,-605.07526,0.0004496,25]
[392092841,1761151844176,-214.0,0.00044971,30]
[392092842,1761151844185,-49868.7972759,0.0004499,3]
[392092843,1761151844194,-121133.43081364,0.0004499,3]
[392092844,1761151844243,-35.77103895,0.0004499,3]
[392092845,1761151844256,-2578.63669856,0.0004499,3]
[392092851,1761151846446,-600.0,0.000411,2]
[392092853,1761151846456,-151.0,0.000449,26]
[392092855,1761151846466,-1951.71239041,0.000449,60]
[392092857,1761151846865,-17649.49567936,0.000449,60]
[392092956,1761152350170,250.0,0.00017,2]
[392092980,1761152646246,353.83956105,0.00023388,120]
[392092981,1761152646877,195.0,0.00023388,120]
[392092992,1761152844296,167.39,0.00013699,2]
[392093002,1761152958372,-167.39,0.00020187,2]
[392093003,1761152958395,-205.07,0.00021262,2]
[392093004,1761152958415,-250.0,0.00023388,2]
[392093005,1761152958435,-167.39,0.00026676,2]
[392093006,1761152958455,-250.0,0.00027831,2]
[392093007,1761152958475,-167.39,0.00033165,2]
[392093008,1761152958496,-207.57301995,0.000344,120]
[392093009,1761152958514,-207.57301995,0.000354,120]
[392093010,1761152958532,-205.22091845,0.00037519,2]
[392093011,1761152960080,-186.48389116,0.00037519,2]
[392093012,1761152960134,-1668.21896639,0.00037519,2]
[392093013,1761152960154,-180.0,0.00037707,3]
[392093014,1761152960173,-310.75541466,0.00037708,2]
[392093015,1761152964128,-5.53228534,0.00037708,2]
[392093016,1761152964150,-150.0,0.00037708,2]
[392093017,1761152964172,-10520.97,0.00037708,30]
[392093018,1761152964194,-7427.574829,0.00037708,2]
[392093019,1761152969121,-4668.025171,0.00037708,2]
[392093020,1761152969141,-709.97,0.00037808,60]
[392093021,1761152969160,-709.97,0.00037839,80]
[392093022,1761152969181,-709.97,0.00037869,100]
[392093023,1761152969200,-709.97,0.000379,120]
[392093024,1761152969220,-2968.0,0.000389,5]
[392093025,1761152969241,-240.82530289,0.00039317,2]
[392093026,1761152969260,-706.28852129,0.00039559,30]